bitfinex-derivatives/quotes_SOLF0:USTF0_20250929
["timestamp","ask_amount","ask_price","bid_price","bid_amount"]
[1759141670606,4.3209,208.22,208.17,4.3217]
[1759141670904,7.71,208.21,208.18,7.47]
[1759141672908,4.3209,208.22,208.18,7.47]
[1759141673110,7.71,208.21,208.18,7.47]
[1759141674911,4.3209,208.22,208.17,4.3217]
[1759141675108,12.3509,208.22,208.17,4.3217]
[1759141675304,12.3509,208.22,208.18,7.45]
[1759141675704,8.03,208.21,208.18,7.45]
[1759141677712,8.03,208.21,208.17,4.3217]
[1759141677910,4.3204,208.24,208.19,7.45]
[1759141678109,8.03,208.23,208.19,7.45]
[1759141678308,4.3204,208.24,208.19,7.45]
[1759141679313,4.3206,208.23,208.19,7.45]
[1759141679702,8.03,208.22,208.19,7.45]
[1759141680813,8.03,208.22,208.18,4.3215]
[1759141681011,12.3506,208.23,208.19,7.45]
[1759141681213,8.03,208.22,208.19,7.45]
[1759141682216,4.3206,208.23,208.18,4.3215]
[1759141682516,8.03,208.22,208.19,7.45]
[1759141687414,8.03,208.28,208.19,7.45]
[1759141687625,8.03,208.28,208.21,7.45]
[1759141688616,8.03,208.25,208.22,7.45]
[1759141689420,8.03,208.28,208.22,21.92984592]
[1759141689820,8.03,208.28,208.22,18.80044592]
[1759141690124,4.3193,208.29,208.23,7.45]
[1759141690918,1.29895024,208.31,208.23,7.45]
[1759141691222,8.03,208.3,208.23,7.45]
[1759141692415,9.32895024,208.3,208.23,7.45]
[1759141692617,12.3498,208.27,208.23,7.45]
[1759141692918,12.3498,208.27,208.21,4.3209]
[1759141693118,12.3498,208.27,208.22,7.45]
[1759141693313,4.3198,208.27,208.22,21.74693957]
[1759141693520,4.3198,208.27,208.21,4.3209]
[1759141693521,8.03,208.26,208.23,7.45]
[1759141693725,8.03,208.26,208.19,11.7713]
[1759141694724,4.3202,208.25,208.19,11.7713]
[1759141694927,4.3202,208.25,208.2,4.3211]
[1759141695129,7.75,208.24,208.21,7.83]
[1759141695823,7.75,208.24,208.21,22.15787204]
[1759141696223,7.75,208.24,208.21,14.32787204]
[1759141696422,7.75,208.24,208.2,4.3211]
[1759141696628,7.75,208.24,208.21,7.83]
[1759141697729,7.75,208.24,208.21,4.3209]
[1759141698034,9.04895024,208.28,208.22,7.83]
[1759141698730,9.04895024,208.28,208.22,12.1507]
[1759141698731,13.36855024,208.28,208.22,12.1507]
[1759141699028,12.0696,208.28,208.22,7.83]
[1759141700041,7.75,208.26,208.22,7.83]
[1759141700444,4.3198,208.27,208.22,7.83]
[1759141700949,7.75,208.26,208.22,7.83]
[1759141701540,4.3198,208.27,208.22,7.83]
[1759141701843,7.75,208.26,208.22,7.83]
[1759141702146,4.3198,208.27,208.22,7.83]
[1759141702647,7.75,208.26,208.22,7.83]
[1759141702849,4.3198,208.27,208.22,7.83]
[1759141703152,7.75,208.25,208.22,7.83]
[1759141703550,4.32,208.26,208.21,18.79498509]
[1759141703851,7.75,208.25,208.21,26.62498509]
[1759141704045,7.75,208.25,208.22,7.85]
[1759141704347,7.6,208.25,208.21,14.47408509]
[1759141704551,7.6,208.25,208.18,7.85]
[1759141704750,7.6,208.25,208.18,9.14895024]
[1759141705140,7.6,208.25,208.19,4.3213]
[1759141705346,7.6,208.25,208.18,9.14895024]
[1759141705549,7.6,208.25,208.21,7.85]
[1759141706356,7.6,208.25,208.2,5.62005024]
[1759141706652,7.6,208.25,208.21,7.85]
[1759141707454,7.6,208.25,208.21,22.08715046]
[1759141707651,7.6,208.28,208.22,7.85]
[1759141709551,4.3199,208.27,208.22,4.3207]
[1759141709755,7.6,208.26,208.23,7.85]
[1759141714959,4.3194,208.29,208.23,4.3205]
[1759141715153,7.6,208.32,208.24,7.85]
[1759141715757,4.3192,208.3,208.24,7.85]
[1759141715957,7.6,208.32,208.24,7.85]
[1759141716754,2.02844473,208.33,208.23,4.3205]
[1759141716954,10.93174469,208.32,208.24,7.85]
[1759141717160,7.6,208.32,208.24,7.85]
[1759141717758,4.3196,208.28,208.24,7.85]
[1759141718063,7.6,208.32,208.22,7.85]
[1759141719565,4.3199,208.27,208.22,12.1707]
[1759141719757,7.6,208.26,208.23,7.85]
[1759141723368,7.6,208.26,208.22,4.3207]
[1759141723866,7.6,208.26,208.23,7.85]
[1759141725168,7.6,208.25,208.21,22.08715046]
[1759141725367,67.1851,208.31,208.21,7.85]
[1759141725368,7.6,208.3,208.21,7.85]
[1759141726565,4.3203,208.25,208.21,7.85]
[1759141726774,7.6,208.24,208.21,7.85]
[1759141728673,7.6,208.24,208.22,7.85]
[1759141728970,4.3205,208.24,208.19,8.05237946]
[1759141729170,7.6,208.23,208.2,7.85]
[1759141729472,7.6,208.23,208.19,7.85]
[1759141729770,7.6,208.23,208.2,7.85]
[1759141729974,7.6,208.23,208.19,8.05237946]
[1759141730474,7.6,208.23,208.2,7.85]
[1759141731171,7.6,208.23,208.2,21.89625244]
[1759141731363,7.6,208.23,208.2,7.85]
[1759141731673,7.6,208.23,208.21,7.85]
[1759141733775,4.3205,208.24,208.21,7.85]
[1759141733973,11.7805,208.24,208.21,7.85]
[1759141734174,67.1851,208.31,208.3,5.527e-05]
[1759141734375,2.02844473,208.3,208.21,7.85]
[1759141734577,3.3376922,208.29,208.21,7.85]
[1759141734777,2.02844473,208.3,208.21,7.85]
[1759141735081,3.3377574,208.29,208.21,7.85]
[1759141735380,2.02844473,208.3,208.21,7.85]
[1759141735578,4.3203,208.25,208.21,7.85]
[1759141735781,4.3203,208.25,208.22,7.94]
[1759141736170,4.72,208.25,208.22,7.94]
[1759141736382,4.72,208.25,208.2,4.3211]
[1759141736679,4.72,208.25,208.21,7.94]
[1759141737777,4.72,208.25,208.2,4.3211]
[1759141738081,4.72,208.25,208.21,7.94]
[1759141738277,4.72,208.25,208.2,4.3211]
[1759141738482,4.72,208.25,208.21,7.94]
[1759141738681,4.72,208.25,208.2,19.0543974]
[1759141739980,4.72,208.25,208.21,7.94]
[1759141740686,4.72,208.25,208.2,19.0543974]
[1759141740885,4.72,208.25,208.21,7.94]
[1759141741180,4.72,208.25,208.2,19.0543974]
[1759141741485,4.72,208.24,208.21,7.94]
[1759141742286,4.3203,208.25,208.21,7.94]
[1759141742489,4.72,208.24,208.2,26.9943974]
[1759141742689,4.3203,208.25,208.21,7.94]
[1759141742888,4.72,208.24,208.21,7.94]
[1759141743183,4.72,208.22,208.2,14.7332974]
[1759141743385,67.1951,208.28,208.17,7.94]
[1759141743586,2.02844473,208.24,208.17,7.94]
[1759141743781,4.72,208.23,208.15,139.03295751]
[1759141743988,4.72,208.22,208.15,130.98057805]
[1759141744188,67.2104,208.23,208.15,130.98057805]
[1759141744789,4.72,208.22,208.15,130.98057805]
[1759141745487,67.2104,208.23,208.15,130.98057805]
[1759141745689,4.72,208.17,208.15,130.98057805]
[1759141746194,4.72,208.17,208.15,138.92057805]
[1759141746690,4.72,208.17,208.15,7.94]
[1759141749196,4.3217,208.18,208.14,14.17132545]
[1759141749390,9.0413,208.2,208.14,7.94]
[1759141749594,4.72,208.23,208.14,7.94]
[1759141750691,4.3212,208.21,208.14,12.2623]
[1759141751597,4.3212,208.21,208.14,26.52439339]
[1759141752794,9.0407,208.23,208.15,4.3221]
[1759141753396,9.0407,208.23,208.16,7.89]
[1759141755599,4.72,208.21,208.16,7.89]
[1759141755800,4.72,208.21,208.15,12.2121]
[1759141756898,4.3209,208.22,208.16,4.3219]
[1759141757299,4.72,208.21,208.16,4.3219]
[1759141757500,4.3209,208.22,208.16,4.3219]
[1759141757798,4.72,208.21,208.16,4.3219]
[1759141758000,4.72,208.21,208.17,7.89]
[1759141758200,4.3209,208.22,208.17,7.89]
[1759141758400,4.72,208.21,208.17,7.89]
[1759141758597,4.3209,208.22,208.17,7.89]
[1759141759200,4.72,208.21,208.17,7.89]
[1759141759400,4.3209,208.22,208.17,7.89]
[1759141759601,4.72,208.21,208.17,7.89]
[1759141760390,4.3209,208.22,208.17,7.89]
[1759141760797,4.72,208.21,208.17,7.89]
[1759141761099,4.3209,208.22,208.17,7.89]
[1759141761695,4.72,208.21,208.17,7.89]
[1759141761890,4.3209,208.22,208.17,7.89]
[1759141762295,4.72,208.21,208.17,7.89]
[1759141762895,4.3209,208.22,208.17,7.89]
[1759141763096,4.72,208.21,208.17,7.89]
[1759141763803,9.0409,208.22,208.16,12.2119]
[1759141764004,4.3209,208.22,208.16,4.3219]
[1759141764904,9.0409,208.22,208.17,7.48]
[1759141765501,9.0409,208.22,208.16,4.3219]
[1759141765902,9.0409,208.22,208.17,7.48]
[1759141766099,9.0409,208.22,208.16,4.3219]
[1759141766410,9.0409,208.22,208.17,7.48]
[1759141766897,9.0409,208.22,208.16,4.3219]
[1759141767096,9.0409,208.22,208.17,7.48]
[1759141767299,9.0409,208.22,208.16,4.3219]
[1759141767494,4.3209,208.22,208.17,7.48]
[1759141767906,4.3209,208.22,208.16,4.3219]
[1759141768307,4.3209,208.22,208.17,7.48]
[1759141768607,4.3209,208.22,208.16,4.3219]
[1759141769502,4.72,208.21,208.17,7.48]
[1759141769699,4.72,208.21,208.16,4.3219]
[1759141770510,4.72,208.21,208.17,7.48]
[1759141771005,4.72,208.21,208.18,7.48]
[1759141771506,4.72,208.21,208.17,4.3217]
[1759141772107,4.72,208.21,208.18,7.48]
[1759141772506,4.72,208.21,208.17,4.3217]
[1759141772806,4.72,208.21,208.18,7.48]
[1759141773008,4.72,208.21,208.17,4.3217]
[1759141774002,4.72,208.21,208.18,7.48]
[1759141774207,4.72,208.21,208.17,4.3217]
[1759141774506,4.72,208.21,208.18,7.48]
[1759141774700,4.72,208.21,208.17,4.3217]
[1759141774903,4.72,208.21,208.18,7.48]
[1759141775711,4.72,208.21,208.17,4.3217]
[1759141775902,4.72,208.21,208.18,7.48]
[1759141776504,4.72,208.21,208.17,4.3217]
[1759141777913,4.72,208.21,208.18,7.48]
[1759141778113,4.72,208.21,208.17,4.3217]
[1759141778314,4.72,208.21,208.18,7.48]
[1759141778712,4.72,208.21,208.17,4.3217]
[1759141779508,4.72,208.21,208.18,7.48]
[1759141779714,4.72,208.21,208.17,4.3217]
[1759141780309,4.72,208.21,208.18,7.48]
[1759141781919,4.72,208.21,208.17,4.3217]
[1759141782121,4.72,208.21,208.18,7.48]
[1759141782506,4.72,208.21,208.17,4.3217]
[1759141783015,4.72,208.21,208.18,7.48]
[1759141783217,4.72,208.21,208.17,4.3217]
[1759141783418,9.0404,208.25,208.16,1.29918271]
[1759141783624,9.0404,208.25,208.19,7.48]
[1759141784614,9.0404,208.25,208.19,11.8013]
[1759141784820,4.3204,208.25,208.19,5.62048271]
[1759141785020,9.0404,208.25,208.2,7.48]
[1759141785216,4.3204,208.25,208.2,7.48]
[1759141785410,9.0404,208.25,208.19,5.62048271]
[1759141785610,4.72,208.25,208.2,7.48]
[1759141785825,4.3199,208.27,208.2,7.48]
[1759141785826,9.0399,208.27,208.2,7.48]
[1759141786221,4.3201,208.26,208.2,7.48]
[1759141787722,9.0401,208.26,208.19,5.62048271]
[1759141787924,9.0401,208.26,208.2,7.48]
[1759141788523,4.72,208.25,208.2,7.48]
[1759141788720,4.72,208.25,208.19,13.10048271]
[1759141790024,4.72,208.25,208.19,5.62048271]
[1759141790620,4.72,208.25,208.2,7.48]
[1759141791021,4.72,208.25,208.19,5.62048271]
[1759141791222,4.72,208.25,208.2,7.48]
[1759141791528,9.0401,208.26,208.2,7.48]
[1759141793521,4.3203,208.25,208.19,5.62048271]
[1759141793726,4.3203,208.25,208.2,7.48]
[1759141793921,4.3203,208.25,208.19,5.62048271]
[1759141794126,4.3203,208.25,208.2,7.51]
[1759141794526,4.3203,208.25,208.19,5.62048271]
[1759141794729,4.3203,208.25,208.2,7.51]
[1759141794928,9.0403,208.25,208.19,5.62048271]
[1759141795129,4.3203,208.25,208.19,4.3213]
[1759141795329,4.3203,208.25,208.2,7.51]
[1759141795533,4.3203,208.25,208.19,4.3213]
[1759141795830,9.0403,208.25,208.2,7.51]
[1759141796027,4.72,208.25,208.2,11.8311]
[1759141796228,4.72,208.25,208.21,7.51]
[1759141796429,4.72,208.28,208.21,7.51]
[1759141796630,4.72,208.28,208.23,7.51]
[1759141797133,4.72,208.29,208.23,7.51]
[1759141797334,3.32386374,208.28,208.23,7.51]
[1759141797630,9.0394,208.29,208.23,7.51]
[1759141797931,3.32387449,208.28,208.23,7.51]
[1759141798132,9.0394,208.29,208.23,7.51]
[1759141798529,9.0394,208.29,208.23,11.8305]
[1759141799223,9.0394,208.29,208.24,7.51]
[1759141799426,9.0394,208.29,208.23,4.3205]
[1759141800030,4.3194,208.29,208.23,4.3205]
[1759141800229,4.72,208.28,208.23,4.3205]
[1759141800631,4.72,208.28,208.24,7.51]
[1759141800934,4.72,208.28,208.23,4.3205]
[1759141801131,4.72,208.28,208.24,7.51]
[1759141801430,4.3194,208.29,208.23,4.3205]
[1759141801637,9.0394,208.29,208.24,7.51]
[1759141801934,4.3194,208.29,208.23,4.3205]
[1759141802737,9.0394,208.29,208.23,4.3205]
[1759141802930,4.3194,208.29,208.23,4.3205]
[1759141803734,9.0394,208.29,208.24,7.51]
[1759141803928,4.72,208.28,208.24,7.51]
[1759141804137,4.72,208.28,208.23,4.3205]
[1759141804340,4.72,208.28,208.24,7.51]
[1759141804542,4.72,208.28,208.23,4.3205]
[1759141804740,4.3194,208.29,208.23,4.3205]
[1759141805742,9.0394,208.29,208.24,7.51]
[1759141805934,4.3194,208.29,208.24,7.51]
[1759141806140,9.0394,208.29,208.24,7.51]
[1759141806342,4.3194,208.29,208.23,4.3205]
[1759141807230,4.72,208.3,208.24,7.51]
[1759141807633,4.72,208.3,208.24,8.80918271]
[1759141808540,4.319,208.31,208.24,8.80918271]
[1759141808745,9.0386,208.33,208.27,1.29918271]
[1759141808937,9.0386,208.33,208.28,7.51]
[1759141809337,4.3182,208.35,208.28,4.3194]
[1759141809538,4.72,208.36,208.29,1.29918271]
[1759141809738,3.31979755,208.35,208.3,7.51]
[1759141809940,4.72,208.34,208.3,7.51]
[1759141810440,4.72,208.34,208.29,1.29918271]
[1759141810641,4.72,208.34,208.3,7.51]
[1759141810836,1.29918271,208.36,208.28,1.29918271]
[1759141811048,4.72,208.29,208.22,7.51]
[1759141811250,4.72,208.27,208.19,13.13048271]
[1759141811740,4.72,208.33,208.25,1.29918271]
[1759141811947,1.29918271,208.32,208.23,1.29918271]
[1759141812136,4.72,208.29,208.22,7.51]
[1759141812742,1.29918271,208.3,208.22,7.51]
[1759141813147,4.3199,208.27,208.21,1.29918271]
[1759141813343,4.3199,208.27,208.21,9.09918271]
[1759141814649,4.3199,208.27,208.21,7.8]
[1759141814849,4.71,208.26,208.21,7.8]
[1759141815149,4.3199,208.27,208.21,7.8]
[1759141815344,4.71,208.26,208.21,7.8]
[1759141815742,4.3199,208.27,208.21,7.8]
[1759141815943,4.71,208.26,208.21,7.8]
[1759141816146,4.3199,208.27,208.21,7.8]
[1759141816343,4.3201,208.26,208.21,7.8]
[1759141816648,4.71,208.25,208.21,7.8]
[1759141817147,4.71,208.25,208.19,1.29918271]
[1759141817646,4.3201,208.26,208.2,7.8]
[1759141818650,4.71,208.25,208.16,7.8]
[1759141818947,4.71,208.21,208.13,8.05557632]
[1759141819249,4.71,208.21,208.13,7.8]
[1759141820038,4.3216,208.19,208.13,7.8]
[1759141820249,1.29918271,208.2,208.13,7.8]
[1759141820452,1.29918271,208.2,208.1,9.09918271]
[1759141820748,4.71,208.19,208.1,9.09918271]
[1759141821249,1.29918271,208.18,208.1,9.09918271]
[1759141821647,4.322,208.17,208.1,9.09918271]
[1759141822043,4.71,208.19,208.1,9.09918271]
[1759141822448,4.3218,208.18,208.1,9.09918271]
[1759141822846,4.71,208.19,208.12,1.29918271]
[1759141823052,4.71,208.19,208.13,7.8]
[1759141824451,4.3218,208.18,208.13,7.79]
[1759141824854,4.3218,208.18,208.12,1.29918271]
[1759141825051,4.3218,208.18,208.12,9.08918271]
[1759141825655,4.3218,208.18,208.12,7.79]
[1759141825856,4.69,208.16,208.12,7.79]
[1759141826048,4.69,208.16,208.1,1.29918271]
[1759141826244,9.0122,208.16,208.1,9.08918271]
[1759141827456,4.3217,208.18,208.1,9.08918271]
[1759141829458,4.322,208.17,208.1,9.08918271]
[1759141829755,4.69,208.18,208.1,9.08918271]
[1759141830651,4.3222,208.16,208.1,9.08918271]
[1759141831856,9.0117,208.18,208.1,5.62248271]
[1759141832060,9.0117,208.18,208.11,7.79]
[1759141832264,4.69,208.18,208.11,7.79]
[1759141833555,4.322,208.17,208.11,7.79]
[1759141837461,4.3214,208.19,208.11,9.82079455]
[1759141837760,4.3214,208.19,208.12,7.79]
[1759141838264,38.78,208.22,208.12,7.79]
[1759141838460,67.2174,208.21,208.12,7.79]
[1759141838770,67.2202,208.2,208.12,7.79]
[1759141838964,4.3226,208.14,208.12,7.79]
[1759141839761,9.0126,208.14,208.12,7.79]
[1759141839968,4.3229,208.12,208.1,7.79]
[1759141840660,4.3229,208.12,208.05,122.89499455]
[1759141840859,4.3229,208.12,208.06,7.79]
[1759141842261,4.3232,208.11,208.06,7.79]
[1759141842762,4.3232,208.11,208.05,134.92346228]
[1759141843466,4.3232,208.11,208.06,7.79]
[1759141843666,4.3232,208.11,208.05,134.92346228]
[1759141843863,4.3232,208.11,208.06,7.79]
[1759141844167,4.3232,208.11,208.05,18.38346228]
[1759141844368,4.3232,208.11,208.06,7.79]
[1759141844765,4.3232,208.11,208.05,18.38346228]
[1759141845668,4.3232,208.11,208.06,7.79]
[1759141845865,4.3232,208.11,208.05,7.79]
[1759141847370,4.3232,208.11,208.06,7.79]
[1759141847571,4.3232,208.11,208.05,7.79]
[1759141851168,4.3234,208.1,208.05,7.79]
[1759141851369,4.3234,208.1,208.04,6.35519455]
[1759141851569,4.3234,208.1,208.05,7.79]
[1759141851773,9.0134,208.1,208.04,6.35519455]
[1759141851975,9.0134,208.1,208.05,7.79]
[1759141852176,67.2328,208.16,208.05,7.79]
[1759141852177,4.69,208.09,208.05,7.79]
[1759141852378,4.69,208.09,208.03,7.79]
[1759141853573,4.324,208.07,208.02,14.67826434]
[1759141853777,9.014,208.07,208.04,7.79]
[1759141853968,4.72,208.06,208.0,7.48]
[1759141855678,9.0442,208.06,208.0,7.48]
[1759141857380,9.0442,208.06,208.0,21.80792038]
[1759141857581,9.0442,208.06,208.0,14.32792038]
[1759141857774,9.0442,208.06,207.99,122.85629455]
[1759141857975,9.0442,208.06,208.0,7.48]
[1759141858683,4.3244,208.05,207.99,122.85629455]
[1759141859083,4.3244,208.05,208.0,7.48]
[1759141859377,4.3244,208.05,207.99,122.85629455]
[1759141859581,4.3244,208.05,207.99,118.53079455]
[1759141859882,4.3244,208.05,207.99,118.55079455]
[1759141860271,4.3245,208.04,207.99,21.58083584]
[1759141860472,4.72,208.03,208.0,7.48]
[1759141860981,9.0447,208.03,208.0,7.48]
[1759141861482,4.72,208.02,208.0,7.48]
[1759141861883,4.3247,208.03,207.98,116.52]
[1759141862886,4.72,208.01,207.99,7.48]
[1759141863383,9.0451,208.01,207.95,7.48]
[1759141864084,4.72,208.01,207.95,7.48]
[1759141864381,67.2768,208.02,207.94,7.48]
[1759141864583,67.2768,208.02,207.91,7.48]
[1759141864786,4.72,208.0,207.91,7.48]
[1759141865289,4.3256,207.99,207.91,7.48]
[1759141865489,4.3256,207.99,207.91,22.12997498]
[1759141865689,4.3256,207.99,207.9,89.59079455]
[1759141865890,4.3256,207.99,207.91,7.48]
[1759141868087,4.3256,207.99,207.91,21.62517416]
[1759141868286,4.3258,207.98,207.91,21.62517416]
[1759141868488,67.276,208.02,207.91,21.62517416]
[1759141868688,4.72,208.01,207.91,21.62517416]
[1759141868892,4.326,207.97,207.91,21.62517416]
[1759141869094,4.72,207.97,207.91,7.48]
[1759141869689,4.3262,207.96,207.91,7.48]
[1759141869992,4.72,207.95,207.9,2.03079455]
[1759141870295,4.72,207.98,207.91,7.48]
[1759141870885,67.2854,207.99,207.91,7.48]
[1759141871089,4.72,207.98,207.91,7.48]
[1759141871692,4.3264,207.95,207.89,196.54460609]
[1759141871898,4.3264,207.95,207.9,7.48]
[1759141872193,9.0464,207.95,207.89,196.54460609]
[1759141872502,4.3258,207.98,207.9,7.48]
[1759141877697,4.3258,207.98,207.9,11.8072]
[1759141877901,4.72,207.99,207.91,7.45]
[1759141878600,4.72,207.99,207.91,4.327]
[1759141878800,4.3253,208.0,207.92,7.45]
[1759141880606,4.3253,208.0,207.92,11.7767]
[1759141880909,4.3255,207.99,207.93,7.45]
[1759141882301,4.3251,208.01,207.93,11.7765]
[1759141882607,4.3251,208.01,207.94,7.45]
[1759141883407,4.3251,208.01,207.95,7.45]
[1759141885905,4.3251,208.01,207.95,4.3261]
[1759141886409,4.3251,208.01,207.96,7.82]
[1759141886912,4.3251,208.01,207.95,4.3261]
[1759141887105,4.3251,208.01,207.96,7.82]
[1759141887507,4.3251,208.01,207.95,4.3261]
[1759141887712,4.3251,208.01,207.96,7.82]
[1759141888108,4.3251,208.01,207.95,4.3261]
[1759141888309,4.74,208.02,207.93,2.03079455]
[1759141888310,4.74,208.02,207.96,4.326]
[1759141888510,4.3247,208.03,207.97,7.82]
[1759141889915,9.0447,208.03,207.97,7.82]
[1759141891306,9.0447,208.03,207.97,12.1457]
[1759141891511,4.3243,208.05,207.98,7.82]
[1759141891806,4.72,208.07,207.98,7.82]
[1759141892211,4.72,208.07,208.0,1.30074492]
[1759141892514,4.72,208.07,208.01,7.82]
[1759141892814,9.0438,208.07,208.01,7.82]
[1759141893012,6.02074492,208.1,208.01,7.82]
[1759141893209,6.02074492,208.1,208.03,7.82]
[1759141893405,4.72,208.1,208.04,1.30074492]
[1759141893715,5.9013864,208.13,208.06,1.30074492]
[1759141893913,4.72,208.13,208.07,7.82]
[1759141894114,4.72,208.13,208.07,22.39385999]
[1759141894314,4.72,208.13,208.07,7.82]
[1759141894706,9.0426,208.13,208.07,7.82]
[1759141895710,4.72,208.11,208.04,7.82]
[1759141896610,4.3233,208.1,208.06,7.82]
[1759141896806,4.72,208.11,208.06,7.82]
[1759141897011,4.3228,208.12,208.06,7.82]
[1759141897410,4.3228,208.12,208.08,7.82]
[1759141897816,4.3228,208.12,208.07,1.30074492]
[1759141898415,4.3228,208.12,208.08,7.82]
[1759141898714,4.3228,208.12,208.07,1.30074492]
[1759141899119,4.3228,208.12,208.08,7.82]
[1759141899313,4.72,208.17,208.1,7.82]
[1759141900319,4.72,208.17,208.12,7.82]
[1759141900911,4.72,208.17,208.11,1.30074492]
[1759141901111,4.72,208.17,208.12,7.82]
[1759141901318,4.72,208.17,208.11,9.12074492]
[1759141902318,116.62,208.18,208.11,9.12074492]
[1759141902511,9.041,208.21,208.13,9.12074492]
[1759141903020,4.3212,208.2,208.13,9.12074492]
[1759141904020,4.3212,208.2,208.13,7.82]
[1759141904021,5.62194492,208.2,208.13,7.82]
[1759141905125,4.72,208.19,208.13,7.82]
[1759141905320,4.72,208.17,208.09,13.44414492]
[1759141906024,9.0419,208.17,208.09,13.44414492]
[1759141908130,9.0419,208.17,208.09,5.62414492]
[1759141908323,4.72,208.17,208.1,12.143]
[1759141908625,1.30074492,208.18,208.11,7.82]
[1759141908826,5.62214492,208.19,208.11,7.82]
[1759141910720,4.3214,208.19,208.12,7.82]
[1759141911426,4.72,208.2,208.14,7.82]
[1759141912327,1.30074492,208.22,208.14,7.82]
[1759141912529,6.02074492,208.24,208.16,7.82]
[1759141912729,6.02074492,208.24,208.18,7.82]
[1759141913227,4.72,208.24,208.18,7.82]
[1759141915132,9.0404,208.24,208.18,7.82]
[1759141919935,4.72,208.22,208.17,67.62234492]
[1759141920129,4.72,208.22,208.15,12.212]
[1759141921635,9.0408,208.22,208.15,12.212]
[1759141922040,9.0408,208.22,208.16,4.3218]
[1759141926136,4.321,208.21,208.15,69.89]
[1759141926329,4.321,208.21,208.15,7.89]
[1759141926730,4.72,208.2,208.15,7.89]
[1759141926931,9.041,208.21,208.14,37.41304492]
[1759141928546,9.041,208.21,208.14,36.1123]
[1759141928843,4.3212,208.2,208.14,36.1123]
[1759141929039,4.72,208.2,208.14,7.89]
[1759141929240,4.72,208.16,208.11,7.89]
[1759141929434,1.30074492,208.17,208.11,7.89]
[1759141929844,4.72,208.14,208.11,7.89]
[1759141930046,4.3223,208.15,208.11,7.89]
[1759141930235,4.72,208.14,208.11,7.89]
[1759141931932,4.3223,208.15,208.09,4.3233]
[1759141932139,4.3223,208.15,208.09,12.2133]
[1759141933844,4.3223,208.15,208.09,74.2133]
[1759141935745,4.3226,208.13,208.09,69.89]
[1759141935959,9.0526,208.13,208.1,7.83]
[1759141937061,5.62334492,208.13,208.08,7.83]
[1759141937261,9.0529,208.12,208.07,4.3237]
[1759141937758,9.0529,208.12,208.08,7.83]
[1759141938755,9.0531,208.11,208.08,7.83]
[1759141938952,4.73,208.1,208.08,7.83]
[1759141940161,1.30074492,208.11,208.08,7.83]
[1759141940459,1.30074492,208.11,208.06,121.87641504]
[1759141940856,1.30074492,208.11,208.08,7.83]
[1759141941056,1.30074492,208.11,208.07,7.83]